[Event "Early-Titled-Tuesday-Blitz-February-27-2024"]
[Site "Chess.com"]
[Date "2024.02.27"]
[Round "6"]
[White "NastyaHn"]
[Black "sokidze"]
[Result "0-1"]
[WhiteElo "2455"]
[BlackElo "2761"]
[TimeControl "180+1"]
[EndTime "9:04:57 PST"]
[Termination "sokidze won on time"]

1. Nc3 {[%clk 0:03:00.9]} 1... Nf6 {[%clk 0:02:55.7]} 2. e4 {[%clk 0:02:58.8]}
2... e5 {[%clk 0:02:53.1]} 3. Nf3 {[%clk 0:02:58.9]} 3... Nc6 {[%clk 0:02:53.2]}
4. d4 {[%clk 0:02:59]} 4... exd4 {[%clk 0:02:53.6]} 5. Nxd4 {[%clk 0:02:59.3]}
5... Bb4 {[%clk 0:02:54.3]} 6. Nxc6 {[%clk 0:02:58]} 6... bxc6 {[%clk
0:02:55.2]} 7. Bd3 {[%clk 0:02:58.1]} 7... d5 {[%clk 0:02:54.8]} 8. Bd2 {[%clk
0:02:52.3]} 8... O-O {[%clk 0:02:54.4]} 9. O-O {[%clk 0:02:52.2]} 9... Rb8
{[%clk 0:02:55]} 10. exd5 {[%clk 0:02:26.4]} 10... cxd5 {[%clk 0:02:54.7]} 11.
Re1 {[%clk 0:02:26.8]} 11... h6 {[%clk 0:02:51.6]} 12. h3 {[%clk 0:02:23.6]}
12... c6 {[%clk 0:02:41]} 13. Rb1 {[%clk 0:02:15.6]} 13... Bd6 {[%clk
0:02:33.9]} 14. Qf3 {[%clk 0:02:12.3]} 14... Bb7 {[%clk 0:02:06]} 15. b4 {[%clk
0:01:35.5]} 15... Ba8 {[%clk 0:01:13.3]} 16. Na4 {[%clk 0:01:18]} 16... Ne4
{[%clk 0:01:02.5]} 17. Bxe4 {[%clk 0:00:38.2]} 17... dxe4 {[%clk 0:01:03.4]} 18.
Qxe4 {[%clk 0:00:38.5]} 18... c5 {[%clk 0:01:04]} 19. Qg4 {[%clk 0:00:38.3]}
19... cxb4 {[%clk 0:00:51.7]} 20. Bxh6 {[%clk 0:00:30.9]} 20... Qf6 {[%clk
0:00:50.5]} 21. Bc1 {[%clk 0:00:19.3]} 21... Bc6 {[%clk 0:00:31.2]} 22. Nb2
{[%clk 0:00:16.2]} 22... Rfe8 {[%clk 0:00:28.2]} 23. Nd3 {[%clk 0:00:16.2]}
23... Rxe1+ {[%clk 0:00:21.9]} 24. Nxe1 {[%clk 0:00:16.3]} 24... Re8 {[%clk
0:00:22.8]} 25. Nd3 {[%clk 0:00:15.3]} 25... a5 {[%clk 0:00:04.7]} 26. Bb2
{[%clk 0:00:15.2]} 26... Qh6 {[%clk 0:00:05]} 27. Bc1 {[%clk 0:00:12.3]} 27...
Qe6 {[%clk 0:00:03.1]} 28. Qxe6 {[%clk 0:00:08.1]} 28... Rxe6 {[%clk 0:00:04]}
29. Be3 {[%clk 0:00:08.5]} 29... Bd5 {[%clk 0:00:04.5]} 30. Rb2 {[%clk
0:00:05.3]} 30... Re4 {[%clk 0:00:04.2]} 31. Kf1 {[%clk 0:00:04.8]} 31... Be7
{[%clk 0:00:04]} 32. Nf4 {[%clk 0:00:02.3]} 32... Bf6 {[%clk 0:00:04.3]} 33. Rb1
{[%clk 0:00:01.5]} 33... Bxa2 {[%clk 0:00:04.7]} 34. Rd1 {[%clk 0:00:01.8]}
34... Bc4+ {[%clk 0:00:05.2]} 0-1

[Event "Early-Titled-Tuesday-Blitz-February-27-2024"]
[Site "Chess.com"]
[Date "2024.02.27"]
[Round "6"]
[White "tsaruk_maks"]
[Black "OneTrickPony_82"]
[Result "1-0"]
[WhiteElo "2747"]
[BlackElo "2547"]
[TimeControl "180+1"]
[EndTime "9:04:58 PST"]
[Termination "tsaruk_maks won by resignation"]

1. d4 {[%clk 0:02:52.5]} 1... Nf6 {[%clk 0:02:59.6]} 2. c4 {[%clk 0:02:43.6]}
2... e6 {[%clk 0:02:59.4]} 3. Nf3 {[%clk 0:02:43.8]} 3... d5 {[%clk 0:02:59.3]}
4. cxd5 {[%clk 0:02:41.2]} 4... exd5 {[%clk 0:02:58.8]} 5. Bg5 {[%clk
0:02:41.6]} 5... c6 {[%clk 0:02:55.5]} 6. Nc3 {[%clk 0:02:42.2]} 6... Be7 {[%clk
0:02:55.3]} 7. e3 {[%clk 0:02:42.7]} 7... h6 {[%clk 0:02:55.7]} 8. Bh4 {[%clk
0:02:40.7]} 8... Bf5 {[%clk 0:02:54.6]} 9. Bd3 {[%clk 0:02:40.3]} 9... Bxd3
{[%clk 0:02:54.3]} 10. Qxd3 {[%clk 0:02:41.2]} 10... O-O {[%clk 0:02:51]} 11.
O-O {[%clk 0:02:41.6]} 11... Nbd7 {[%clk 0:02:50.2]} 12. Rab1 {[%clk 0:02:40]}
12... Re8 {[%clk 0:02:48.7]} 13. b4 {[%clk 0:02:39.8]} 13... a6 {[%clk
0:02:42.5]} 14. a4 {[%clk 0:02:39.4]} 14... Ne4 {[%clk 0:02:38.5]} 15. Bg3
{[%clk 0:02:29.8]} 15... Nxg3 {[%clk 0:02:32.9]} 16. hxg3 {[%clk 0:02:30.3]}
16... b5 {[%clk 0:02:19.1]} 17. a5 {[%clk 0:02:23.4]} 17... Bd6 {[%clk
0:02:19.2]} 18. e4 {[%clk 0:02:20.2]} 18... dxe4 {[%clk 0:02:17.3]} 19. Nxe4
{[%clk 0:02:21.1]} 19... Nf6 {[%clk 0:02:17.5]} 20. Nxf6+ {[%clk 0:02:09.9]}
20... Qxf6 {[%clk 0:02:17]} 21. Rfc1 {[%clk 0:02:10.8]} 21... Bf8 {[%clk
0:02:09.1]} 22. Ne5 {[%clk 0:02:07.4]} 22... Rac8 {[%clk 0:02:04.5]} 23. Rb3
{[%clk 0:01:55.7]} 23... Red8 {[%clk 0:02:00.2]} 24. Qe4 {[%clk 0:01:53.7]}
24... Rd6 {[%clk 0:01:43.7]} 25. Rf3 {[%clk 0:01:53]} 25... Qe6 {[%clk
0:01:41.7]} 26. Rxf7 {[%clk 0:01:52.3]} 26... Rcd8 {[%clk 0:01:30.5]} 27. Qf4
{[%clk 0:01:30.8]} 27... Be7 {[%clk 0:00:40.1]} 28. Rxe7 {[%clk 0:00:24.5]}
28... Qxe7 {[%clk 0:00:36.9]} 29. Nxc6 {[%clk 0:00:25.4]} 29... Rxc6 {[%clk
0:00:22.2]} 30. Rxc6 {[%clk 0:00:26.3]} 30... Qe1+ {[%clk 0:00:21.3]} 31. Kh2
{[%clk 0:00:25.7]} 31... Qxb4 {[%clk 0:00:21.9]} 32. Rxa6 {[%clk 0:00:25.5]}
32... Qxd4 {[%clk 0:00:20]} 33. Ra8 {[%clk 0:00:24.5]} 33... Kh7 {[%clk
0:00:15]} 34. Rxd8 {[%clk 0:00:22.8]} 34... Qxd8 {[%clk 0:00:14.1]} 35. a6
{[%clk 0:00:22.3]} 35... Qb6 {[%clk 0:00:12.6]} 36. Qf5+ {[%clk 0:00:21.1]}
36... Kg8 {[%clk 0:00:11.6]} 37. Qc8+ {[%clk 0:00:20.8]} 37... Kh7 {[%clk
0:00:11.9]} 38. Qb7 {[%clk 0:00:19.1]} 38... Qg6 {[%clk 0:00:12]} 39. Qxb5
{[%clk 0:00:09.7]} 39... Qf7 {[%clk 0:00:12.4]} 40. Qd3+ {[%clk 0:00:08.2]}
40... g6 {[%clk 0:00:11.2]} 41. Qf3 {[%clk 0:00:06.7]} 41... Qa7 {[%clk
0:00:09.2]} 42. Qb7+ {[%clk 0:00:07.6]} 1-0

[Event "Early-Titled-Tuesday-Blitz-February-27-2024"]
[Site "Chess.com"]
[Date "2024.02.27"]
[Round "6"]
[White "Zhigalko_Sergei"]
[Black "Szparu"]
[Result "0-1"]
[WhiteElo "2905"]
[BlackElo "2781"]
[TimeControl "180+1"]
[EndTime "9:04:59 PST"]
[Termination "Szparu won on time"]

1. e4 {[%clk 0:03:00.9]} 1... d5 {[%clk 0:03:00.4]} 2. exd5 {[%clk 0:03:00.6]}
2... Nf6 {[%clk 0:03:00.3]} 3. d4 {[%clk 0:02:59.4]} 3... Nxd5 {[%clk
0:02:59.6]} 4. c4 {[%clk 0:02:58.8]} 4... Nb6 {[%clk 0:02:58.4]} 5. Nf3 {[%clk
0:02:59]} 5... g6 {[%clk 0:02:50.3]} 6. Nc3 {[%clk 0:02:58.4]} 6... Bg7 {[%clk
0:02:46.8]} 7. c5 {[%clk 0:02:58.4]} 7... N6d7 {[%clk 0:02:31.3]} 8. Bc4 {[%clk
0:02:51.4]} 8... O-O {[%clk 0:02:30.6]} 9. O-O {[%clk 0:02:50.1]} 9... e5 {[%clk
0:02:26]} 10. Bg5 {[%clk 0:02:38.4]} 10... Bf6 {[%clk 0:02:14.9]} 11. Bxf6
{[%clk 0:02:31.4]} 11... Qxf6 {[%clk 0:02:15.8]} 12. Nd5 {[%clk 0:02:22.7]}
12... Qd8 {[%clk 0:02:14.2]} 13. Nxe5 {[%clk 0:02:13.3]} 13... Nxe5 {[%clk
0:02:13.5]} 14. dxe5 {[%clk 0:02:13.1]} 14... Be6 {[%clk 0:02:13.8]} 15. Nf6+
{[%clk 0:02:09.6]} 15... Kg7 {[%clk 0:02:13.3]} 16. Bxe6 {[%clk 0:01:57.1]}
16... fxe6 {[%clk 0:02:12.2]} 17. Qb3 {[%clk 0:01:55.7]} 17... Nc6 {[%clk
0:02:11.2]} 18. Rad1 {[%clk 0:01:45.5]} 18... Qc8 {[%clk 0:01:51.6]} 19. f4
{[%clk 0:01:21.9]} 19... Rf7 {[%clk 0:01:48.9]} 20. Rd2 {[%clk 0:01:08.4]} 20...
Qf8 {[%clk 0:01:36.5]} 21. Qc4 {[%clk 0:00:51.2]} 21... Rd8 {[%clk 0:01:36.3]}
22. Rfd1 {[%clk 0:00:50.8]} 22... Rxd2 {[%clk 0:01:36.3]} 23. Rxd2 {[%clk
0:00:51.2]} 23... Qc8 {[%clk 0:01:29]} 24. b4 {[%clk 0:00:39]} 24... Ne7 {[%clk
0:01:28.5]} 25. Rd7 {[%clk 0:00:30.1]} 25... Nf5 {[%clk 0:00:58.5]} 26. Qxe6
{[%clk 0:00:25.9]} 26... Rxd7 {[%clk 0:00:59.4]} 27. Nxd7 {[%clk 0:00:21.6]}
27... Qd8 {[%clk 0:00:55.5]} 28. g4 {[%clk 0:00:12.9]} 28... Nd4 {[%clk
0:00:51.9]} 29. Qf6+ {[%clk 0:00:13]} 29... Qxf6 {[%clk 0:00:51.9]} 30. exf6+
{[%clk 0:00:10]} 30... Kf7 {[%clk 0:00:52.5]} 31. Kf2 {[%clk 0:00:03.7]} 31...
Ke6 {[%clk 0:00:48.4]} 32. Ne5 {[%clk 0:00:01.9]} 32... Kxf6 {[%clk 0:00:48.5]}
33. Nd3 {[%clk 0:00:01.8]} 33... Ke6 {[%clk 0:00:47.1]} 34. Ke3 {[%clk
0:00:02.2]} 34... Kd5 {[%clk 0:00:47.7]} 35. h4 {[%clk 0:00:02.4]} 35... h5
{[%clk 0:00:41]} 36. gxh5 {[%clk 0:00:02.3]} 36... gxh5 {[%clk 0:00:41.9]} 37.
Kd2 {[%clk 0:00:02.4]} 37... Nf3+ {[%clk 0:00:40.9]} 38. Kc3 {[%clk 0:00:02.6]}
38... Nxh4 {[%clk 0:00:41.8]} 39. b5 {[%clk 0:00:02.9]} 39... Ke4 {[%clk
0:00:31.4]} 40. c6 {[%clk 0:00:03.4]} 40... b6 {[%clk 0:00:28.7]} 41. a4 {[%clk
0:00:03.2]} 41... Nf3 {[%clk 0:00:24.1]} 42. Nb4 {[%clk 0:00:02.1]} 42... h4
{[%clk 0:00:23.5]} 43. Na6 {[%clk 0:00:02.4]} 43... h3 {[%clk 0:00:24.1]} 44.
Nxc7 {[%clk 0:00:03.1]} 44... h2 {[%clk 0:00:24.7]} 45. Ne6 {[%clk 0:00:02]}
45... h1=Q {[%clk 0:00:25]} 46. c7 {[%clk 0:00:02.6]} 46... Qh8+ {[%clk
0:00:24.3]} 0-1

[Event "Early-Titled-Tuesday-Blitz-February-27-2024"]
[Site "Chess.com"]
[Date "2024.02.27"]
[Round "6"]
[White "Yurovskykh_Oleksandr"]
[Black "Salem-AR"]
[Result "0-1"]
[WhiteElo "2679"]
[BlackElo "3027"]
[TimeControl "180+1"]
[EndTime "9:04:59 PST"]
[Termination "Salem-AR won by resignation"]

1. d4 {[%clk 0:03:00.9]} 1... Nf6 {[%clk 0:02:59.8]} 2. Nf3 {[%clk 0:02:58.2]}
2... g6 {[%clk 0:02:59.8]} 3. Bf4 {[%clk 0:02:58.2]} 3... Bg7 {[%clk 0:02:59.9]}
4. e3 {[%clk 0:02:58.7]} 4... O-O {[%clk 0:02:58.3]} 5. Be2 {[%clk 0:02:58.6]}
5... c5 {[%clk 0:02:57.9]} 6. c3 {[%clk 0:02:58.6]} 6... Qb6 {[%clk 0:02:56.3]}
7. Qb3 {[%clk 0:02:58.5]} 7... d6 {[%clk 0:02:56.7]} 8. Qxb6 {[%clk 0:02:57.2]}
8... axb6 {[%clk 0:02:56.6]} 9. h3 {[%clk 0:02:54.6]} 9... Bd7 {[%clk
0:02:56.3]} 10. O-O {[%clk 0:02:50.5]} 10... Bc6 {[%clk 0:02:51.4]} 11. Nbd2
{[%clk 0:02:46.1]} 11... Nbd7 {[%clk 0:02:47.9]} 12. a3 {[%clk 0:02:41.8]} 12...
b5 {[%clk 0:02:47.5]} 13. Rfc1 {[%clk 0:02:25.3]} 13... c4 {[%clk 0:02:46]} 14.
Bd1 {[%clk 0:02:12.8]} 14... Nb6 {[%clk 0:02:45.9]} 15. Bc2 {[%clk 0:02:07.7]}
15... Na4 {[%clk 0:02:44.5]} 16. Rab1 {[%clk 0:02:03.4]} 16... Nd5 {[%clk
0:02:31.4]} 17. Bxa4 {[%clk 0:01:52.4]} 17... Rxa4 {[%clk 0:02:31.6]} 18. Bg5
{[%clk 0:01:47.3]} 18... h6 {[%clk 0:02:27.5]} 19. Bh4 {[%clk 0:01:46.5]} 19...
f5 {[%clk 0:02:24.7]} 20. Re1 {[%clk 0:01:42.7]} 20... g5 {[%clk 0:02:17.9]} 21.
Bg3 {[%clk 0:01:41.2]} 21... Nf6 {[%clk 0:02:17.5]} 22. Nh2 {[%clk 0:01:29]}
22... Nh5 {[%clk 0:02:09.4]} 23. Nhf1 {[%clk 0:01:28.8]} 23... Raa8 {[%clk
0:02:08]} 24. f3 {[%clk 0:01:28.1]} 24... e5 {[%clk 0:02:06.8]} 25. Bf2 {[%clk
0:01:27.1]} 25... Rad8 {[%clk 0:02:00.4]} 26. g4 {[%clk 0:01:11.7]} 26... fxg4
{[%clk 0:01:59.1]} 27. hxg4 {[%clk 0:01:12.6]} 27... Nf6 {[%clk 0:01:58.7]} 28.
e4 {[%clk 0:01:03.7]} 28... h5 {[%clk 0:01:43.3]} 29. d5 {[%clk 0:00:33.6]}
29... Bd7 {[%clk 0:01:34]} 30. gxh5 {[%clk 0:00:32.3]} 30... g4 {[%clk
0:01:34.9]} 31. Bh4 {[%clk 0:00:16]} 31... Rde8 {[%clk 0:01:24.2]} 32. Ne3
{[%clk 0:00:15.8]} 32... gxf3 {[%clk 0:01:21.2]} 33. Kf2 {[%clk 0:00:16.1]}
33... Nxh5 {[%clk 0:00:53.8]} 34. Bg5 {[%clk 0:00:16.4]} 34... Nf4 {[%clk
0:00:38.1]} 35. Bxf4 {[%clk 0:00:16.4]} 35... Rxf4 {[%clk 0:00:35.1]} 36. Rh1
{[%clk 0:00:14.7]} 36... Bf6 {[%clk 0:00:22.7]} 37. Rbg1+ {[%clk 0:00:15.3]}
37... Kf8 {[%clk 0:00:21.5]} 38. Rh7 {[%clk 0:00:14.9]} 38... Bh4+ {[%clk
0:00:20.9]} 39. Kf1 {[%clk 0:00:15.4]} 39... Bh3+ {[%clk 0:00:21]} 40. Ng2
{[%clk 0:00:05.5]} 40... fxg2+ {[%clk 0:00:21.9]} 41. Ke2 {[%clk 0:00:05.8]}
41... Bg4+ {[%clk 0:00:22.6]} 0-1

[Event "Early-Titled-Tuesday-Blitz-February-27-2024"]
[Site "Chess.com"]
[Date "2024.02.27"]
[Round "6"]
[White "jens1102"]
[Black "viktorgen2021"]
[Result "0-1"]
[WhiteElo "2670"]
[BlackElo "2534"]
[TimeControl "180+1"]
[EndTime "9:04:59 PST"]
[Termination "viktorgen2021 won by checkmate"]

1. e4 {[%clk 0:03:00.9]} 1... g6 {[%clk 0:02:53.9]} 2. h4 {[%clk 0:02:59.7]}
2... h5 {[%clk 0:02:52.6]} 3. d4 {[%clk 0:02:56.9]} 3... Bg7 {[%clk 0:02:48.8]}
4. Be3 {[%clk 0:02:57.1]} 4... d6 {[%clk 0:02:48]} 5. Qd2 {[%clk 0:02:57]} 5...
Nf6 {[%clk 0:02:47.4]} 6. f3 {[%clk 0:02:56.9]} 6... c6 {[%clk 0:02:48]} 7. c4
{[%clk 0:02:56.7]} 7... Nbd7 {[%clk 0:02:44]} 8. Nc3 {[%clk 0:02:57]} 8... O-O
{[%clk 0:02:27.2]} 9. Nh3 {[%clk 0:02:57.1]} 9... a6 {[%clk 0:02:14.5]} 10. a4
{[%clk 0:02:56.1]} 10... a5 {[%clk 0:02:13.4]} 11. Nf2 {[%clk 0:02:54.7]} 11...
e5 {[%clk 0:02:09.8]} 12. d5 {[%clk 0:02:49.2]} 12... Qe7 {[%clk 0:01:55.9]} 13.
O-O-O {[%clk 0:02:45.8]} 13... cxd5 {[%clk 0:01:50.5]} 14. cxd5 {[%clk
0:02:41.3]} 14... b6 {[%clk 0:01:37.1]} 15. Bb5 {[%clk 0:02:40.1]} 15... Nc5
{[%clk 0:01:31.6]} 16. Kb1 {[%clk 0:02:31.4]} 16... Bd7 {[%clk 0:01:26.8]} 17.
Nd3 {[%clk 0:02:22.7]} 17... Bxb5 {[%clk 0:01:24.6]} 18. Nxc5 {[%clk 0:02:21.1]}
18... bxc5 {[%clk 0:01:23.6]} 19. Nxb5 {[%clk 0:02:18.4]} 19... Rfb8 {[%clk
0:01:22.5]} 20. Ka2 {[%clk 0:02:15]} 20... Ne8 {[%clk 0:01:17.9]} 21. g4 {[%clk
0:02:07.3]} 21... hxg4 {[%clk 0:01:14.3]} 22. fxg4 {[%clk 0:02:08.2]} 22... Nc7
{[%clk 0:01:14.7]} 23. Nc3 {[%clk 0:02:07.2]} 23... Rb4 {[%clk 0:01:14.1]} 24.
h5 {[%clk 0:02:07.1]} 24... Rab8 {[%clk 0:01:13.8]} 25. Rb1 {[%clk 0:02:05.1]}
25... Qd7 {[%clk 0:01:06.4]} 26. Qc2 {[%clk 0:02:03.9]} 26... c4 {[%clk
0:01:00.5]} 27. hxg6 {[%clk 0:02:01.7]} 27... fxg6 {[%clk 0:01:00.5]} 28. Ka1
{[%clk 0:01:48.6]} 28... Na6 {[%clk 0:00:55.6]} 29. g5 {[%clk 0:01:20.6]} 29...
Rb3 {[%clk 0:00:43.8]} 30. Qh2 {[%clk 0:01:12.2]} 30... Kf7 {[%clk 0:00:19]} 31.
Rbf1+ {[%clk 0:01:08.2]} 31... Ke7 {[%clk 0:00:19]} 32. Qh7 {[%clk 0:01:06.4]}
32... Kd8 {[%clk 0:00:07]} 33. Qg8+ {[%clk 0:00:48.9]} 33... Qe8 {[%clk
0:00:06.6]} 34. Qf7 {[%clk 0:00:49.8]} 34... Rxb2 {[%clk 0:00:04]} 35. Rh7
{[%clk 0:00:21.7]} 35... R2b3 {[%clk 0:00:03.9]} 36. Nb5 {[%clk 0:00:17.2]}
36... R8xb5 {[%clk 0:00:02.1]} 37. axb5 {[%clk 0:00:07.9]} 37... Ra3+ {[%clk
0:00:01.6]} 38. Kb2 {[%clk 0:00:06.6]} 38... Qxb5+ {[%clk 0:00:02.3]} 39. Kc2
{[%clk 0:00:06.6]} 39... Qb3+ {[%clk 0:00:02.6]} 40. Kd2 {[%clk 0:00:07.1]}
40... Ra2+ {[%clk 0:00:03.1]} 41. Ke1 {[%clk 0:00:08]} 41... Qb1+ {[%clk
0:00:03.2]} 42. Bc1 {[%clk 0:00:08]} 42... Qxc1# {[%clk 0:00:03.6]} 0-1

[Event "Early-Titled-Tuesday-Blitz-February-27-2024"]
[Site "Chess.com"]
[Date "2024.02.27"]
[Round "6"]
[White "GHANDEEVAM2003"]
[Black "Hikaru"]
[Result "1-0"]
[WhiteElo "3042"]
[BlackElo "3236"]
[TimeControl "180+1"]
[EndTime "9:05:01 PST"]
[Termination "GHANDEEVAM2003 won by resignation"]

1. a3 {[%clk 0:03:00.9]} 1... a6 {[%clk 0:02:50.6]} 2. h3 {[%clk 0:03:00.1]}
2... h6 {[%clk 0:02:50.1]} 3. Nf3 {[%clk 0:03:00.1]} 3... Nf6 {[%clk 0:02:50.4]}
4. d4 {[%clk 0:02:58.8]} 4... g6 {[%clk 0:02:43]} 5. Nc3 {[%clk 0:02:53]} 5...
d5 {[%clk 0:02:41.4]} 6. Bf4 {[%clk 0:02:53]} 6... Bg7 {[%clk 0:02:39.4]} 7. e3
{[%clk 0:02:52.3]} 7... b6 {[%clk 0:02:36.5]} 8. Ne5 {[%clk 0:02:43.5]} 8... Bb7
{[%clk 0:02:33.7]} 9. Qf3 {[%clk 0:02:41.1]} 9... Nbd7 {[%clk 0:02:31.3]} 10. g4
{[%clk 0:02:35]} 10... c5 {[%clk 0:02:30.8]} 11. h4 {[%clk 0:02:30.7]} 11...
cxd4 {[%clk 0:02:17.6]} 12. exd4 {[%clk 0:02:31.6]} 12... Qc8 {[%clk 0:01:31.3]}
13. Be2 {[%clk 0:02:25.4]} 13... Ne4 {[%clk 0:01:28.2]} 14. Nxe4 {[%clk
0:01:53]} 14... dxe4 {[%clk 0:01:29.1]} 15. Qb3 {[%clk 0:01:53.5]} 15... Nxe5
{[%clk 0:01:18.6]} 16. dxe5 {[%clk 0:01:54.4]} 16... Qc5 {[%clk 0:00:59]} 17.
Rh3 {[%clk 0:01:19.5]} 17... O-O {[%clk 0:00:48.1]} 18. Rc3 {[%clk 0:01:18.2]}
18... Qa5 {[%clk 0:00:47.9]} 19. O-O-O {[%clk 0:01:11.9]} 19... Rad8 {[%clk
0:00:43]} 20. Rc7 {[%clk 0:01:05.5]} 20... Bd5 {[%clk 0:00:31.8]} 21. Qb4 {[%clk
0:01:03.5]} 21... Qxb4 {[%clk 0:00:20.1]} 22. axb4 {[%clk 0:01:04.4]} 22... e6
{[%clk 0:00:16.3]} 23. Bxa6 {[%clk 0:01:03.3]} 23... Ra8 {[%clk 0:00:15.5]} 24.
b5 {[%clk 0:01:02.9]} 24... g5 {[%clk 0:00:16.1]} 25. hxg5 {[%clk 0:01:01.5]}
25... hxg5 {[%clk 0:00:17]} 26. Bg3 {[%clk 0:00:59.3]} 26... e3 {[%clk
0:00:17.5]} 27. fxe3 {[%clk 0:00:56.5]} 27... Bf3 {[%clk 0:00:17.4]} 28. Rd4
{[%clk 0:00:55.7]} 28... Rfd8 {[%clk 0:00:15.7]} 29. c4 {[%clk 0:00:49.7]} 29...
Bf8 {[%clk 0:00:15.8]} 30. Kc2 {[%clk 0:00:34.2]} 30... Bc5 {[%clk 0:00:15]} 31.
Kc3 {[%clk 0:00:32.8]} 31... Bxd4+ {[%clk 0:00:11.9]} 32. exd4 {[%clk
0:00:33.7]} 32... Bxg4 {[%clk 0:00:12.8]} 33. b4 {[%clk 0:00:33.3]} 33... Bf3
{[%clk 0:00:12.9]} 34. c5 {[%clk 0:00:33.3]} 34... Kg7 {[%clk 0:00:13.6]} 35.
cxb6 {[%clk 0:00:27.5]} 35... Rh8 {[%clk 0:00:13.2]} 36. b7 {[%clk 0:00:25.4]}
36... Rab8 {[%clk 0:00:13.6]} 37. Kc4 {[%clk 0:00:23.7]} 37... Rh3 {[%clk
0:00:11.9]} 38. Be1 {[%clk 0:00:20.4]} 38... g4 {[%clk 0:00:12.5]} 39. Kc5
{[%clk 0:00:19.7]} 39... g3 {[%clk 0:00:13]} 40. Kb6 {[%clk 0:00:17.3]} 40... g2
{[%clk 0:00:13.4]} 41. Bf2 {[%clk 0:00:17.6]} 41... Rh1 {[%clk 0:00:14]} 42. Ka7
{[%clk 0:00:17]} 42... Rxb7+ {[%clk 0:00:09.5]} 43. Bxb7 {[%clk 0:00:17.1]}
43... Bxb7 {[%clk 0:00:10.1]} 44. Kxb7 {[%clk 0:00:15.5]} 44... Rf1 {[%clk
0:00:11]} 45. Be3 {[%clk 0:00:16.1]} 45... Rf3 {[%clk 0:00:10.2]} 46. Rc2 {[%clk
0:00:16.5]} 46... Rxe3 {[%clk 0:00:09.2]} 47. Rxg2+ {[%clk 0:00:17]} 47... Kf8
{[%clk 0:00:10.1]} 1-0

[Event "Early-Titled-Tuesday-Blitz-February-27-2024"]
[Site "Chess.com"]
[Date "2024.02.27"]
[Round "6"]
[White "Winner_7777"]
[Black "Pliukha_Mikhail"]
[Result "0-1"]
[WhiteElo "2545"]
[BlackElo "2744"]
[TimeControl "180+1"]
[EndTime "9:05:01 PST"]
[Termination "Pliukha_Mikhail won by resignation"]

1. d4 {[%clk 0:02:58.1]} 1... Nf6 {[%clk 0:02:58.7]} 2. c4 {[%clk 0:02:56.4]}
2... e6 {[%clk 0:02:59.6]} 3. Nc3 {[%clk 0:02:57.1]} 3... d5 {[%clk 0:03:00.5]}
4. cxd5 {[%clk 0:02:57.8]} 4... Nxd5 {[%clk 0:03:01.4]} 5. e4 {[%clk 0:02:57.4]}
5... Nxc3 {[%clk 0:03:02.3]} 6. bxc3 {[%clk 0:02:58.3]} 6... c5 {[%clk
0:03:03.2]} 7. Nf3 {[%clk 0:02:58.9]} 7... cxd4 {[%clk 0:03:04.1]} 8. cxd4
{[%clk 0:02:59.4]} 8... Bb4+ {[%clk 0:03:04.8]} 9. Bd2 {[%clk 0:03:00.1]} 9...
Bxd2+ {[%clk 0:03:05.7]} 10. Qxd2 {[%clk 0:03:00.9]} 10... O-O {[%clk
0:03:06.6]} 11. Bc4 {[%clk 0:03:01.5]} 11... b5 {[%clk 0:03:07]} 12. Bxb5 {[%clk
0:02:51.6]} 12... Bb7 {[%clk 0:03:07]} 13. Bd3 {[%clk 0:02:52]} 13... Nc6 {[%clk
0:03:07.6]} 14. Rb1 {[%clk 0:02:09.3]} 14... Rb8 {[%clk 0:03:07.2]} 15. Qc3
{[%clk 0:02:09.3]} 15... Qd6 {[%clk 0:02:09.2]} 16. O-O {[%clk 0:01:42.4]} 16...
Rfc8 {[%clk 0:02:07.6]} 17. Rxb7 {[%clk 0:00:53.3]} 17... Rxb7 {[%clk
0:02:08.5]} 18. Ba6 {[%clk 0:00:53.7]} 18... Ne7 {[%clk 0:02:07.4]} 19. Qd3
{[%clk 0:00:52.7]} 19... Rb2 {[%clk 0:01:49.7]} 20. Bxc8 {[%clk 0:00:52]} 20...
Nxc8 {[%clk 0:01:50.6]} 21. Qc3 {[%clk 0:00:48.8]} 21... Qb8 {[%clk 0:01:47.5]}
22. Rc1 {[%clk 0:00:44]} 22... Ne7 {[%clk 0:01:42]} 23. a4 {[%clk 0:00:30.6]}
23... h6 {[%clk 0:01:35.7]} 24. g3 {[%clk 0:00:29.4]} 24... Rb3 {[%clk
0:01:34.1]} 25. Qc7 {[%clk 0:00:29.2]} 25... Qe8 {[%clk 0:00:59.5]} 26. Ne5
{[%clk 0:00:25]} 26... f6 {[%clk 0:00:59.7]} 27. Nd7 {[%clk 0:00:21.5]} 27...
Ng6 {[%clk 0:00:46.3]} 28. Qd6 {[%clk 0:00:16.8]} 28... Kh7 {[%clk 0:00:35.3]}
29. Rc7 {[%clk 0:00:15.7]} 29... Kh8 {[%clk 0:00:28.9]} 30. Qc5 {[%clk
0:00:10.9]} 30... Rb1+ {[%clk 0:00:15.5]} 31. Kg2 {[%clk 0:00:10.3]} 31... Nf4+
{[%clk 0:00:16.1]} 32. gxf4 {[%clk 0:00:04.7]} 32... Qg6+ {[%clk 0:00:16.3]} 33.
Qg5 {[%clk 0:00:03.4]} 33... Qxe4+ {[%clk 0:00:13.6]} 34. f3 {[%clk 0:00:03]}
34... Qe2+ {[%clk 0:00:13.2]} 35. Kh3 {[%clk 0:00:02.3]} 35... hxg5 {[%clk
0:00:13.7]} 36. Rc8+ {[%clk 0:00:03]} 36... Kh7 {[%clk 0:00:13.8]} 37. Nf8+
{[%clk 0:00:03.6]} 37... Kh6 {[%clk 0:00:14.4]} 38. fxg5+ {[%clk 0:00:04.2]}
38... Kxg5 {[%clk 0:00:14.8]} 39. Nh7+ {[%clk 0:00:03.5]} 39... Kf4 {[%clk
0:00:14.9]} 0-1